fUST/lending_fUST_20260421
["ID","MTS","AMOUNT","RATE_DAILY","PERIOD"]
[420931924,1776738460622,515.42770454,0.00026347,120]
[420931926,1776738618984,219.588893,0.00026347,120]
[420931998,1776738638805,-5000.0,0.00011788,10]
[420931999,1776738638815,-202.26328493,0.00011967,2]
[420932000,1776738638824,-589.0,0.00011967,2]
[420932001,1776738638834,-790.1619454,0.00012246,2]
[420932002,1776738638978,-712.71398883,0.00012246,2]
[420932003,1776738638988,-695.46560346,0.00012346,2]
[420932005,1776738639000,-2290.20491062,0.00012346,2]
[420932006,1776738639009,-235.98,0.00012424,2]
[420932007,1776738639019,-3262.26206999,0.00012446,2]
[420932008,1776738639028,-3503.00596282,0.00012546,2]
[420932009,1776738639037,-300.0,0.00012592,2]
[420932010,1776738639047,-300.0,0.00012592,2]
[420932011,1776738639057,-50000.0,0.00012645,2]
[420932012,1776738639066,-3743.74985577,0.00012646,2]
[420932013,1776738639076,-3984.49374872,0.00012746,2]
[420932014,1776738639084,-224.77805533,0.00012746,2]
[420932015,1776738639093,-4225.23764168,0.00012846,2]
[420932016,1776738639102,-253.018,0.00012885,2]
[420932017,1776738639111,-160.0,0.00012985,2]
[420932018,1776738639121,-325.2695586,0.00013119,2]
[420932019,1776738639130,-5862.71208218,0.00013246,2]
[420932020,1776738639140,-187.939,0.00013392,2]
[420932021,1776738639149,-184.0,0.00013392,2]
[420932022,1776738639158,-441.0,0.00013392,2]
[420932023,1776738639168,-255.547468,0.00013699,2]
[420932024,1776738639177,-1000.0,0.00013699,2]
[420932025,1776738639186,-5951.25967378,0.00013795,2]
[420932026,1776738639196,-238.67067621,0.00013967,2]
[420932027,1776738639205,-1062.33,0.0001398,2]
[420932028,1776738639215,-2244.2205078,0.00014128,2]
[420932029,1776738639224,-463.74418649,0.000142,2]
[420932030,1776738639234,-1793.6964822,0.000142,2]
[420932031,1776738639243,-500.8416338,0.00014373,2]
[420932032,1776738639252,-1000.0,0.000145,90]
[420932033,1776738639261,-268.26111572,0.00014502,2]
[420932034,1776738639271,-2150.738,0.00014502,2]
[420932035,1776738639280,-6835.65018445,0.00014595,2]
[420932036,1776738639289,-500.0,0.00014698,2]
[420932037,1776738639298,-500.0,0.00014698,2]
[420932038,1776738639307,-173.5222428,0.00014698,2]
[420932039,1776738639316,-593.7037037,0.000149,2]
[420932040,1776738639325,-500.0,0.00014972,2]
[420932041,1776738639334,-600.0,0.00014991,2]
[420932042,1776738639343,-10225.74044691,0.00015,2]
[420932043,1776738639352,-165.40432716,0.00015,2]
[420932044,1776738639361,-737.0,0.00015,2]
[420932045,1776738639371,-2230.315306,0.0001505,2]
[420932046,1776738639380,-725.942552,0.00015068,2]
[420932047,1776738639389,-10225.74044691,0.000152,2]
[420932048,1776738639398,-165.40432716,0.000152,2]
[420932049,1776738639407,-160.0,0.00015237,3]
[420932050,1776738639416,-500.0,0.00015246,2]
[420932051,1776738639425,-10225.74044691,0.000153,2]
[420932052,1776738639434,-165.40432716,0.000153,2]
[420932053,1776738639444,-6033.381093,0.00015356,2]
[420932054,1776738639454,-10225.74044691,0.000155,2]
[420932055,1776738639463,-165.40432716,0.000155,2]
[420932056,1776738639472,-500.0,0.0001552,2]
[420932057,1776738639481,-6397.86341772,0.00015572,2]
[420932058,1776738639490,-2345.43864934,0.00015598,2]
[420932059,1776738639500,-10225.74044691,0.000156,2]
[420932060,1776738639509,-165.40432716,0.000156,2]
[420932061,1776738639518,-394.62191794,0.000156,2]
[420932062,1776738639527,-825.0,0.00015751,2]
[420932063,1776738639536,-500.0,0.00015794,2]
[420932064,1776738639546,-10225.74044691,0.000158,2]
[420932065,1776738639555,-394.62191794,0.000158,2]
[420932066,1776738639565,-633.24341217,0.00015841,2]
[420932067,1776738639574,-10225.74044691,0.000159,2]
[420932068,1776738639584,-394.62191794,0.000159,2]
[420932069,1776738639593,-275.0780675,0.00015967,2]
[420932070,1776738639606,-3000.0,0.00016,2]
[420932071,1776738639615,-200.0,0.00016,7]
[420932072,1776738639624,-3000.0,0.0001601,2]
[420932073,1776738639634,-3000.0,0.0001602,2]
[420932074,1776738639644,-3000.0,0.0001603,2]
[420932075,1776738639654,-3000.0,0.0001604,2]
[420932076,1776738639663,-3000.0,0.0001605,2]
[420932077,1776738639672,-3000.0,0.0001606,2]
[420932078,1776738639681,-5000.0,0.0001606,2]
[420932079,1776738639691,-7358.76558818,0.00016064,2]
[420932080,1776738639700,-512.48371617,0.00016068,2]
[420932081,1776738639709,-680.15660095,0.00016068,2]
[420932082,1776738639718,-3000.0,0.0001607,2]
[420932083,1776738639727,-3000.0,0.0001608,2]
[420932084,1776738639737,-160.0,0.00016082,4]
[420932085,1776738639746,-3000.0,0.0001609,2]
[420932086,1776738639756,-10225.74044691,0.000161,2]
[420932087,1776738639765,-394.62191794,0.000161,2]
[420932088,1776738639774,-3000.0,0.000161,2]
[420932089,1776738639783,-160.0,0.00016109,7]
[420932090,1776738639792,-519.266692,0.00016109,7]
[420932091,1776738639803,-878.533385,0.00016109,7]
[420932092,1776738639812,-3000.0,0.0001611,2]
[420932093,1776738639821,-275.45,0.00016116,2]
[420932094,1776738639831,-275.45,0.00016116,2]
[420932095,1776738639840,-275.45,0.00016116,2]
[420932096,1776738639849,-3000.0,0.0001612,2]
[420932097,1776738639858,-3000.0,0.0001613,2]
[420932098,1776738639867,-3000.0,0.0001614,2]
[420932099,1776738639876,-5246.174296,0.0001615,2]
[420932100,1776738639885,-5000.0,0.0001615,2]
[420932101,1776738639894,-3972.894064,0.0001615,2]
[420932102,1776738639904,-1140.0,0.0001615,2]
[420932103,1776738639912,-156.915,0.00016163,2]
[420932104,1776738639923,-157.077,0.00016163,2]
[420932105,1776738639932,-500.0,0.00016164,2]
[420932106,1776738639941,-500.0,0.00016164,2]
[420932107,1776738639950,-500.0,0.00016164,2]
[420932108,1776738639960,-854.76948646,0.00016164,2]
[420932109,1776738639969,-7372.06,0.00016164,2]
[420932110,1776738639978,-6200.61,0.00016164,2]
[420932111,1776738639988,-578.24,0.00016164,2]
[420932112,1776738639997,-585.09,0.00016164,2]
[420932113,1776738640006,-947.65,0.00016164,2]
[420932114,1776738640016,-500.0,0.00016164,2]
[420932115,1776738640025,-500.0,0.00016164,2]
[420932116,1776738640034,-500.0,0.00016164,2]
[420932117,1776738640043,-500.0,0.00016164,2]
[420932118,1776738640053,-500.0,0.00016164,2]
[420932119,1776738640063,-500.0,0.00016164,2]
[420932120,1776738640072,-755.07,0.00016164,2]
[420932121,1776738640081,-500.0,0.00016164,2]
[420932122,1776738640091,-500.0,0.00016164,2]
[420932123,1776738640100,-736.57,0.00016164,2]
[420932124,1776738640110,-1858.23,0.00016164,2]
[420932125,1776738640119,-683.84,0.00016164,2]
[420932126,1776738640128,-3391.67,0.00016164,2]
[420932127,1776738640138,-2845.63,0.00016164,2]
[420932128,1776738640147,-942.56,0.00016164,2]
[420932129,1776738640156,-500.0,0.00016164,2]
[420932130,1776738640166,-500.0,0.00016164,2]
[420932131,1776738640176,-500.0,0.00016164,2]
[420932132,1776738640186,-931.87,0.00016164,2]
[420932133,1776738640195,-1468.68,0.00016164,2]
[420932134,1776738640205,-1208.98,0.00016164,2]
[420932135,1776738640214,-909.52,0.00016164,2]
[420932136,1776738640224,-500.0,0.00016164,2]
[420932137,1776738640233,-634.37,0.00016164,2]
[420932138,1776738640243,-1393.62,0.00016164,2]
[420932139,1776738640252,-1631.25,0.00016164,2]
[420932140,1776738640262,-1034.79,0.00016164,2]
[420932142,1776738640272,-5412.07,0.00016164,2]
[420932143,1776738640281,-1333.09,0.00016164,2]
[420932144,1776738640291,-500.0,0.00016164,2]
[420932145,1776738640300,-1055.62,0.00016164,2]
[420932146,1776738640311,-2738.88,0.00016164,2]
[420932147,1776738640320,-2731.89,0.00016164,2]
[420932148,1776738640330,-2600.62,0.00016164,2]
[420932149,1776738640339,-2254.44,0.00016164,2]
[420932150,1776738640349,-500.0,0.00016164,2]
[420932151,1776738640358,-2088.86,0.00016164,2]
[420932152,1776738640367,-500.0,0.00016164,2]
[420932153,1776738640376,-3845.39,0.00016164,2]
[420932154,1776738640386,-750.4,0.00016164,2]
[420932155,1776738640395,-2809.13,0.00016164,2]
[420932156,1776738640405,-5431.02,0.00016164,2]
[420932157,1776738640414,-500.0,0.00016164,2]
[420932158,1776738640423,-500.0,0.00016164,2]
[420932159,1776738640433,-500.0,0.00016164,2]
[420932160,1776738640442,-844.1,0.00016164,2]
[420932161,1776738640451,-764.76,0.00016164,2]
[420932162,1776738640460,-500.0,0.00016164,2]
[420932163,1776738640470,-628.08,0.00016164,2]
[420932164,1776738640479,-2269.79,0.00016164,2]
[420932165,1776738640489,-5859.1,0.00016164,2]
[420932166,1776738640498,-500.0,0.00016164,2]
[420932167,1776738640507,-500.0,0.00016164,2]
[420932168,1776738640516,-500.0,0.00016164,2]
[420932169,1776738640526,-4245.16,0.00016164,2]
[420932170,1776738640536,-701.39,0.00016164,2]
[420932171,1776738640545,-915.33,0.00016164,2]
[420932172,1776738640555,-3796.29,0.00016164,2]
[420932173,1776738640564,-500.0,0.00016164,2]
[420932174,1776738640574,-23822.54,0.00016164,2]
[420932175,1776738640583,-1937.17,0.00016164,2]
[420932176,1776738640593,-939.33,0.00016164,2]
[420932177,1776738640602,-519.24,0.00016164,2]
[420932178,1776738640611,-2092.51,0.00016164,2]
[420932179,1776738640620,-500.0,0.00016164,2]
[420932180,1776738640630,-500.0,0.00016164,2]
[420932181,1776738640639,-528.23,0.00016164,2]
[420932182,1776738640648,-1690.89,0.00016164,2]
[420932183,1776738640658,-3778.88,0.00016164,2]
[420932184,1776738640667,-1209.507,0.00016164,2]
[420932185,1776738640676,-151.0,0.00016164,2]
[420932186,1776738640686,-151.0,0.00016164,2]
[420932187,1776738640695,-232.881408,0.00016164,2]
[420932188,1776738640704,-537.18806335,0.00016164,2]
[420932189,1776738640713,-381.24505136,0.00016164,2]
[420932190,1776738640723,-622.40319713,0.00016164,2]
[420932191,1776738640732,-7809.11093833,0.00016194,2]
[420932192,1776738640741,-10225.74044691,0.000162,2]
[420932193,1776738640751,-394.62191794,0.000162,2]
[420932194,1776738640760,-593.7037037,0.00016332,2]
[420932195,1776738640769,-296.3794721,0.00016338,2]
[420932196,1776738640779,-184.0,0.00016392,2]
[420932197,1776738640788,-441.0,0.00016392,2]
[420932198,1776738640798,-200.05695406,0.00016399,14]
[420932199,1776738640808,-71548.0,0.000164,2]
[420932200,1776738640817,-10225.74044691,0.000164,2]
[420932202,1776738640826,-151.0,0.000164,2]
[420932203,1776738640836,-151.0,0.000164,2]
[420932204,1776738640845,-155.0,0.00016432,2]
[420932205,1776738640854,-500.0,0.00016438,2]
[420932206,1776738640863,-500.0,0.00016438,2]
[420932207,1776738640872,-500.0,0.00016438,2]
[420932208,1776738640881,-500.0,0.00016438,2]
[420932209,1776738640890,-500.0,0.00016438,2]
[420932210,1776738640900,-500.0,0.00016438,2]
[420932211,1776738640909,-550.2,0.00016438,2]
[420932212,1776738640919,-500.0,0.00016438,2]
[420932213,1776738640928,-500.0,0.00016438,2]
[420932214,1776738641104,-555.17,0.00016438,2]
[420932215,1776738641115,-500.0,0.00016438,2]
[420932216,1776738641124,-500.0,0.00016438,2]
[420932217,1776738641134,-500.0,0.00016438,2]
[420932218,1776738641143,-500.0,0.00016438,2]
[420932219,1776738641152,-566.33,0.00016438,2]
[420932220,1776738641166,-500.0,0.00016438,2]
[420932221,1776738641176,-700.65,0.00016438,2]
[420932222,1776738641185,-663.16,0.00016438,2]
[420932223,1776738641194,-500.0,0.00016438,2]
[420932224,1776738641203,-500.0,0.00016438,2]
[420932225,1776738641213,-1395.49,0.00016438,2]
[420932226,1776738641222,-500.0,0.00016438,2]
[420932227,1776738641232,-500.0,0.00016438,2]
[420932228,1776738641241,-915.61,0.00016438,2]
[420932229,1776738641251,-500.0,0.00016438,2]
[420932230,1776738641260,-500.0,0.00016438,2]
[420932231,1776738641270,-285.17717314,0.00016438,2]
[420932232,1776738641279,-500.0,0.00016438,2]
[420932233,1776738641289,-500.0,0.00016438,2]
[420932234,1776738641299,-500.0,0.00016438,2]
[420932235,1776738641308,-500.0,0.00016438,2]
[420932236,1776738641317,-500.0,0.00016438,2]
[420932237,1776738641327,-500.0,0.00016438,2]
[420932238,1776738641336,-500.0,0.00016438,2]
[420932239,1776738641346,-500.0,0.00016438,2]
[420932240,1776738641355,-1554.06,0.00016438,2]
[420932241,1776738641364,-441.6392,0.00016438,2]
[420932242,1776738641374,-500.0,0.00016438,2]
[420932243,1776738641383,-582.68,0.00016438,2]
[420932244,1776738641392,-5611.23,0.00016438,2]
[420932245,1776738641401,-500.0,0.00016438,2]
[420932246,1776738641410,-8913.81,0.00016438,2]
[420932247,1776738641419,-235.20128146,0.00016438,2]
[420932248,1776738641428,-500.0,0.00016438,2]
[420932249,1776738641437,-500.0,0.00016438,2]
[420932250,1776738641446,-1546.18,0.00016438,2]
[420932251,1776738641455,-7372.06,0.00016438,2]
[420932252,1776738641464,-6200.61,0.00016438,2]
[420932253,1776738641474,-578.24,0.00016438,2]
[420932254,1776738641483,-585.09,0.00016438,2]
[420932255,1776738641493,-947.65,0.00016438,2]
[420932256,1776738641502,-500.0,0.00016438,2]
[420932257,1776738641511,-296.9609397,0.00016438,2]
[420932258,1776738641520,-500.0,0.00016438,2]
[420932259,1776738641530,-500.0,0.00016438,2]
[420932260,1776738641539,-500.0,0.00016438,2]
[420932261,1776738641548,-411.09303112,0.00016438,2]
[420932262,1776738641558,-755.07,0.00016438,2]
[420932263,1776738641567,-500.0,0.00016438,2]
[420932264,1776738641576,-500.0,0.00016438,2]
[420932265,1776738641586,-736.57,0.00016438,2]
[420932266,1776738641595,-1858.23,0.00016438,2]
[420932267,1776738641605,-683.84,0.00016438,2]
[420932268,1776738641615,-3391.67,0.00016438,2]
[420932269,1776738641625,-942.56,0.00016438,2]
[420932270,1776738641634,-2845.63,0.00016438,2]
[420932271,1776738641644,-500.0,0.00016438,2]
[420932272,1776738641653,-500.0,0.00016438,2]
[420932273,1776738641663,-500.0,0.00016438,2]
[420932274,1776738641672,-931.87,0.00016438,2]
[420932275,1776738641682,-1468.68,0.00016438,2]
[420932276,1776738641692,-1208.98,0.00016438,2]
[420932277,1776738641701,-909.52,0.00016438,2]
[420932278,1776738641711,-500.0,0.00016438,2]
[420932279,1776738641720,-634.37,0.00016438,2]
[420932280,1776738641729,-1393.62,0.00016438,2]
[420932281,1776738641738,-1631.25,0.00016438,2]
[420932282,1776738641747,-1034.79,0.00016438,2]
[420932283,1776738641756,-5412.07,0.00016438,2]
[420932284,1776738641766,-1333.09,0.00016438,2]
[420932285,1776738641775,-500.0,0.00016438,2]
[420932286,1776738641785,-1055.62,0.00016438,2]
[420932287,1776738641795,-2738.88,0.00016438,2]
[420932288,1776738641804,-2731.89,0.00016438,2]
[420932289,1776738641814,-2600.62,0.00016438,2]
[420932290,1776738641823,-2254.44,0.00016438,2]
[420932291,1776738641833,-500.0,0.00016438,2]
[420932292,1776738641842,-2088.86,0.00016438,2]
[420932293,1776738641852,-500.0,0.00016438,2]
[420932294,1776738641862,-3845.39,0.00016438,2]
[420932295,1776738641871,-750.4,0.00016438,2]
[420932296,1776738641880,-2809.13,0.00016438,2]
[420932297,1776738641889,-5431.02,0.00016438,2]
[420932298,1776738641899,-500.0,0.00016438,2]
[420932299,1776738641908,-500.0,0.00016438,2]
[420932300,1776738641918,-500.0,0.00016438,2]
[420932301,1776738641927,-844.1,0.00016438,2]
[420932302,1776738641936,-764.76,0.00016438,2]
[420932303,1776738641945,-500.0,0.00016438,2]
[420932304,1776738641955,-628.08,0.00016438,2]
[420932305,1776738641964,-2269.79,0.00016438,2]
[420932306,1776738641973,-5859.1,0.00016438,2]
[420932307,1776738641983,-500.0,0.00016438,2]
[420932308,1776738641992,-500.0,0.00016438,2]
[420932309,1776738642002,-367.13707882,0.00016438,2]
[420932310,1776738642011,-4245.16,0.00016438,2]
[420932311,1776738642020,-701.39,0.00016438,2]
[420932312,1776738642030,-915.33,0.00016438,2]
[420932313,1776738642039,-3796.29,0.00016438,2]
[420932314,1776738642048,-500.0,0.00016438,2]
[420932315,1776738642057,-23822.54,0.00016438,2]
[420932316,1776738642067,-1937.17,0.00016438,2]
[420932317,1776738642076,-939.33,0.00016438,2]
[420932318,1776738642086,-519.24,0.00016438,2]
[420932319,1776738642095,-2092.51,0.00016438,2]
[420932320,1776738642104,-500.0,0.00016438,2]
[420932321,1776738642113,-500.0,0.00016438,2]
[420932322,1776738642123,-528.23,0.00016438,2]
[420932323,1776738642132,-1690.89,0.00016438,2]
[420932324,1776738642142,-3778.88,0.00016438,2]
[420932325,1776738642151,-1209.507,0.00016438,2]
[420932326,1776738642160,-151.0,0.00016438,2]
[420932327,1776738642171,-151.0,0.00016438,2]
[420932328,1776738642180,-151.0,0.00016438,2]
[420932329,1776738642190,-151.0,0.00016438,2]
[420932330,1776738642200,-800.0,0.00016438,2]
[420932331,1776738642210,-1500.0,0.00016438,2]
[420932332,1776738642220,-1500.0,0.00016438,2]
[420932333,1776738642229,-151.756257,0.00016438,2]
[420932334,1776738642238,-151.756257,0.00016438,2]
[420932335,1776738642247,-151.756257,0.00016438,2]
[420932336,1776738642256,-151.756257,0.00016438,2]
[420932337,1776738642266,-151.756257,0.00016438,2]
[420932338,1776738642275,-151.756257,0.00016438,2]
[420932339,1776738642285,-151.756257,0.00016438,2]
[420932340,1776738642295,-151.756257,0.00016438,2]
[420932341,1776738642304,-151.756257,0.00016438,2]
[420932342,1776738642313,-151.756257,0.00016438,2]
[420932343,1776738642323,-151.756257,0.00016438,2]
[420932344,1776738642332,-151.756257,0.00016438,2]
[420932345,1776738642341,-151.756257,0.00016438,2]
[420932346,1776738642350,-151.756257,0.00016438,2]
[420932347,1776738642359,-151.756257,0.00016438,2]
[420932348,1776738642369,-151.756257,0.00016438,2]
[420932349,1776738642378,-260.0,0.00016438,2]
[420932350,1776738642387,-151.0,0.00016438,2]
[420932351,1776738642396,-151.0,0.00016438,2]
[420932352,1776738642405,-151.0,0.00016438,2]
[420932353,1776738642414,-151.0,0.00016438,2]
[420932354,1776738642424,-151.0,0.00016438,2]
[420932355,1776738642433,-151.0,0.00016438,2]
[420932356,1776738642443,-151.0,0.00016438,2]
[420932357,1776738642452,-151.0,0.00016438,2]
[420932358,1776738642461,-183.057537,0.00016438,2]
[420932359,1776738642470,-352.900282,0.00016438,2]
[420932360,1776738642480,-352.900282,0.00016438,2]
[420932361,1776738642490,-352.900282,0.00016438,2]
[420932362,1776738642499,-352.900282,0.00016438,2]
[420932363,1776738642509,-352.900282,0.00016438,2]
[420932364,1776738642518,-352.900282,0.00016438,2]
[420932365,1776738642527,-352.900282,0.00016438,2]
[420932366,1776738642536,-352.900282,0.00016438,2]
[420932367,1776738642546,-352.900282,0.00016438,2]
[420932368,1776738642555,-352.900282,0.00016438,2]
[420932369,1776738642564,-352.900282,0.00016438,2]
[420932370,1776738642574,-352.900282,0.00016438,2]
[420932371,1776738642583,-352.900282,0.00016438,2]
[420932372,1776738642592,-352.900282,0.00016438,2]
[420932373,1776738642601,-352.900282,0.00016438,2]
[420932374,1776738642610,-352.900282,0.00016438,2]
[420932375,1776738642619,-352.900282,0.00016438,2]
[420932376,1776738642629,-352.900282,0.00016438,2]
[420932377,1776738642638,-352.900282,0.00016438,2]
[420932378,1776738642647,-352.90029,0.00016438,2]
[420932379,1776738642656,-352.868265,0.00016438,2]
[420932380,1776738642665,-352.868265,0.00016438,2]
[420932381,1776738642674,-352.868265,0.00016438,2]
[420932382,1776738642683,-352.868265,0.00016438,2]
[420932383,1776738642693,-352.868265,0.00016438,2]
[420932384,1776738642702,-352.868265,0.00016438,2]
[420932385,1776738642711,-352.868265,0.00016438,2]
[420932386,1776738642721,-352.868265,0.00016438,2]
[420932387,1776738642730,-352.868265,0.00016438,2]
[420932388,1776738642740,-352.868265,0.00016438,2]
[420932389,1776738642749,-352.868265,0.00016438,2]
[420932390,1776738642758,-352.868265,0.00016438,2]
[420932391,1776738642767,-352.868265,0.00016438,2]
[420932392,1776738642776,-352.868265,0.00016438,2]
[420932393,1776738642786,-352.868265,0.00016438,2]
[420932394,1776738642795,-352.868265,0.00016438,2]
[420932395,1776738642804,-352.868265,0.00016438,2]
[420932396,1776738642813,-352.868265,0.00016438,2]
[420932397,1776738642823,-352.868265,0.00016438,2]
[420932398,1776738642832,-352.868271,0.00016438,2]
[420932399,1776738642841,-345.561811,0.00016438,2]
[420932400,1776738642850,-345.561811,0.00016438,2]
[420932401,1776738642859,-345.561811,0.00016438,2]
[420932402,1776738642868,-345.561811,0.00016438,2]
[420932403,1776738642877,-345.561811,0.00016438,2]
[420932404,1776738642886,-345.561811,0.00016438,2]
[420932405,1776738642895,-167.379489,0.00016438,2]
[420932406,1776738642905,-345.561811,0.00016438,2]
[420932407,1776738642914,-167.379489,0.00016438,2]
[420932408,1776738642924,-345.561811,0.00016438,2]
[420932409,1776738642933,-167.379489,0.00016438,2]
[420932410,1776738642942,-345.561811,0.00016438,2]
[420932411,1776738642950,-345.561811,0.00016438,2]
[420932412,1776738642960,-167.379489,0.00016438,2]
[420932413,1776738642969,-345.561811,0.00016438,2]
[420932414,1776738642978,-167.379489,0.00016438,2]
[420932415,1776738642987,-345.561811,0.00016438,2]
[420932416,1776738642995,-345.561811,0.00016438,2]
[420932417,1776738643005,-167.379489,0.00016438,2]
[420932418,1776738643014,-345.561811,0.00016438,2]
[420932419,1776738643023,-167.379489,0.00016438,2]
[420932420,1776738643032,-345.561811,0.00016438,2]
[420932421,1776738643042,-167.379489,0.00016438,2]
[420932423,1776738643051,-345.561811,0.00016438,2]
[420932425,1776738643060,-167.379489,0.00016438,2]
[420932427,1776738643072,-345.561811,0.00016438,2]
[420932428,1776738643083,-167.379489,0.00016438,2]
[420932429,1776738643095,-345.561811,0.00016438,2]
[420932430,1776738643107,-167.379489,0.00016438,2]
[420932432,1776738643119,-345.561811,0.00016438,2]
[420932433,1776738643131,-167.379489,0.00016438,2]
[420932434,1776738643143,-345.56181,0.00016438,2]
[420932435,1776738643153,-167.379489,0.00016438,2]
[420932436,1776738643163,-167.379489,0.00016438,2]
[420932437,1776738643174,-167.379489,0.00016438,2]
[420932438,1776738643186,-167.379489,0.00016438,2]
[420932440,1776738643197,-167.379489,0.00016438,2]
[420932442,1776738643208,-167.379489,0.00016438,2]
[420932445,1776738643219,-167.379489,0.00016438,2]
[420932446,1776738643230,-167.379484,0.00016438,2]
[420932447,1776738643241,-151.0,0.00016438,2]
[420932448,1776738643253,-151.0,0.00016438,2]
[420932449,1776738643264,-151.0,0.00016438,2]
[420932450,1776738643275,-151.0,0.00016438,2]
[420932451,1776738643286,-249.851544,0.00016438,2]
[420932452,1776738643296,-7502.869269,0.00016438,2]
[420932453,1776738643307,-7502.869269,0.00016438,2]
[420932454,1776738643319,-7502.869269,0.00016438,2]
[420932455,1776738643330,-7502.869269,0.00016438,2]
[420932456,1776738643341,-7502.869269,0.00016438,2]
[420932457,1776738643353,-7502.869269,0.00016438,2]
[420932458,1776738643363,-7502.869269,0.00016438,2]
[420932459,1776738643374,-7502.869269,0.00016438,2]
[420932460,1776738643386,-7502.869269,0.00016438,2]
[420932461,1776738643398,-7502.869269,0.00016438,2]
[420932462,1776738643408,-7502.869269,0.00016438,2]
[420932463,1776738643418,-7502.869269,0.00016438,2]
[420932464,1776738643430,-7502.869269,0.00016438,2]
[420932465,1776738643440,-7502.869269,0.00016438,2]
[420932466,1776738643450,-7502.869269,0.00016438,2]
[420932467,1776738643459,-7502.869269,0.00016438,2]
[420932468,1776738643469,-7502.869269,0.00016438,2]
[420932469,1776738643481,-7502.869269,0.00016438,2]
[420932470,1776738643492,-7502.869269,0.00016438,2]
[420932471,1776738643502,-7502.869265,0.00016438,2]
[420932472,1776738643515,-260.0,0.00016469,2]
[420932473,1776738643526,-224.77239047,0.00016473,2]
[420932474,1776738643538,-500.0,0.00016473,2]
[420932475,1776738643550,-506.45950185,0.00016473,2]
[420932476,1776738643562,-150.0,0.00016473,2]
[420932477,1776738643573,-500.0,0.00016473,2]
[420932478,1776738643584,-500.0,0.00016473,2]
[420932479,1776738643596,-500.80731888,0.00016473,2]
[420932480,1776738643607,-500.0,0.00016473,2]
[420932481,1776738643619,-268.89082973,0.00016473,2]
[420932482,1776738643630,-500.0,0.00016473,2]
[420932483,1776738643640,-500.0,0.00016473,2]
[420932484,1776738643651,-500.0,0.00016473,2]
[420932485,1776738643663,-295.37061196,0.00016479,2]
[420932486,1776738643674,-323.6572143,0.00016482,2]
[420932487,1776738643684,-196.4268325,0.00016482,2]
[420932488,1776738643695,-720.0,0.0001649,2]
[420932489,1776738643705,-2148.75225342,0.00016548,2]
[420932490,1776738643715,-200.05695405,0.00016565,60]
[420932491,1776738643724,-10225.74044691,0.000166,2]
[420932492,1776738643734,-166.68308375,0.00016668,2]
[420932493,1776738643746,-1140.0,0.00016698,2]
[420932494,1776738643759,-10225.74044691,0.000167,2]
[420932495,1776738643770,-151.756257,0.000167,2]
[420932496,1776738643782,-151.756257,0.000167,2]
[420932497,1776738643792,-151.756257,0.000167,2]
[420932498,1776738643802,-151.756259,0.000167,2]
[420932499,1776738643813,-151.0,0.000167,2]
[420932500,1776738643825,-151.0,0.000167,2]
[420932501,1776738643836,-155.0,0.00016702,2]
[420932502,1776738643848,-500.0,0.00016712,2]
[420932503,1776738643859,-500.0,0.00016712,2]
[420932504,1776738643870,-500.0,0.00016712,2]
[420932505,1776738643881,-500.0,0.00016712,2]
[420932506,1776738643891,-500.0,0.00016712,2]